bitfinex-derivatives/quotes_SOLF0:USTF0_20260115
["timestamp","ask_amount","ask_price","bid_price","bid_amount"]
[1768487092548,7.22636019,145.35,145.31,6.24231538]
[1768487092748,2.12264889,145.35,145.31,6.24231538]
[1768487093252,5.23728689,145.35,145.31,6.24231538]
[1768487093947,5.23728689,145.35,145.31,0.04701538]
[1768487094453,5.10384476,145.34,145.31,0.04701538]
[1768487094647,5.23728689,145.35,145.31,0.04701538]
[1768487094949,5.10388663,145.34,145.27,3.29807288]
[1768487095150,5.23728689,145.35,145.27,3.29807288]
[1768487095345,5.10025852,145.34,145.27,3.29807288]
[1768487095647,5.23728689,145.35,145.27,3.29807288]
[1768487095850,5.23728689,145.35,145.3,6.1958]
[1768487096151,0.05210279,145.34,145.3,6.1958]
[1768487099052,0.05210279,145.34,145.28,9.49457288]
[1768487099453,3.16674079,145.34,145.28,9.49457288]
[1768487100355,2.12264889,145.31,145.25,3.29807288]
[1768487100547,3.114638,145.32,145.25,3.29807288]
[1768487100858,3.114638,145.32,145.27,0.05094327]
[1768487101153,2.12264889,145.33,145.27,3.34901615]
[1768487101848,0.04671285,145.31,145.27,9.54611615]
[1768487102755,2.12264889,145.33,145.27,9.54611615]
[1768487103560,2.12264889,145.33,145.27,3.34901615]
[1768487103858,0.05290184,145.31,145.27,3.34901615]
[1768487104757,11.43158689,145.34,145.27,3.34901615]
[1768487104758,2.12264889,145.34,145.27,3.34901615]
[1768487105061,8.31634889,145.36,145.27,3.34901615]
[1768487105262,8.31634889,145.36,145.27,3.29807288]
[1768487105758,8.31634889,145.36,145.29,3.29807288]
[1768487105959,0.04938088,145.33,145.26,3.29807288]
[1768487106153,2.12264889,145.32,145.26,3.29807288]
[1768487107461,6.48336444,145.33,145.26,3.29807288]
[1768487108356,5.10484654,145.32,145.26,3.29807288]
[1768487108555,6.48336444,145.33,145.26,3.29807288]
[1768487108761,11.30014654,145.32,145.26,3.29807288]
[1768487108962,6.1953,145.32,145.26,3.29807288]
[1768487109653,6.1955,145.31,145.26,3.29807288]
[1768487110058,0.05237124,145.3,145.26,3.29807288]
[1768487112760,9.309638,145.33,145.27,3.34405977]
[1768487112761,6.195,145.33,145.27,3.34405977]
[1768487113265,9.308738,145.35,145.27,3.34405977]
[1768487113963,9.308738,145.35,145.29,3.29807288]
[1768487114965,0.04373715,145.33,145.29,3.29807288]
[1768487115766,0.04373715,145.33,145.3,0.04954643]
[1768487116770,3.15837515,145.33,145.27,3.29807288]
[1768487117064,3.114638,145.33,145.27,3.29807288]
[1768487117463,5.10058897,145.32,145.27,3.29807288]
[1768487117664,3.114638,145.33,145.27,3.29807288]
[1768487117854,0.05162942,145.31,145.28,0.04426866]
[1768487118866,6.24722942,145.31,145.25,3.29807288]
[1768487120666,6.24722942,145.31,145.27,0.04384385]
[1768487120667,0.05162942,145.31,145.27,0.04384385]
[1768487120873,0.05162942,145.31,145.27,3.33815265]
[1768487124080,0.05162942,145.31,145.27,9.53525265]
[1768487126386,0.05162942,145.31,145.27,3.33815265]
[1768487130680,0.05162942,145.31,145.27,0.04384385]
[1768487132194,3.10401261,145.31,145.27,0.04384385]
[1768487134293,8.15726335,145.3,145.23,9.49101364]
[1768487134588,3.05238319,145.29,145.23,3.29231364]
[1768487135583,0.04537161,145.27,145.25,0.05236854]
[1768487139894,6.37172875,145.31,145.25,0.05236854]
[1768487140100,8.15632042,145.3,145.25,0.05236854]
[1768487140299,3.05238319,145.3,145.25,0.05236854]
[1768487140800,9.24828319,145.3,145.25,0.05236854]
[1768487141000,0.04968788,145.29,145.25,0.05236854]
[1768487142905,6.24608788,145.29,145.25,0.05236854]
[1768487143908,0.04968788,145.29,145.25,0.05236854]
[1768487145805,3.10207107,145.29,145.25,0.05236854]
[1768487152808,3.15319167,145.27,145.18,3.28339364]
[1768487153204,3.15319167,145.27,145.21,6.1997]
[1768487153807,0.04977091,145.25,145.21,6.1997]
[1768487154011,0.04977091,145.25,145.23,0.04951503]
[1768487155508,3.15319167,145.27,145.23,0.04951503]
[1768487156708,0.04385336,145.26,145.23,0.04951503]
[1768487157610,3.19704503,145.26,145.23,0.04951503]
[1768487157910,3.19704503,145.26,145.2,3.28339364]
[1768487158809,3.19704503,145.26,145.21,6.1997]
[1768487159008,3.19704503,145.26,145.2,3.28339364]
[1768487159808,3.19704503,145.26,145.2,9.48349364]
[1768487160109,3.19704503,145.26,145.2,3.28339364]
[1768487160610,3.19704503,145.26,145.21,6.1997]
[1768487160811,9.51544556,145.3,145.22,3.33252426]
[1768487161012,10.39694305,145.29,145.22,3.28339364]
[1768487161207,81.36,145.31,145.22,3.28339364]
[1768487161406,10.39721643,145.3,145.22,3.28339364]
[1768487161713,5.10272376,145.29,145.22,3.28339364]
[1768487162004,182.82432205,145.35,145.25,0.05272207]
[1768487162209,13.71686497,145.34,145.25,3.28339364]
[1768487162406,10.39751941,145.33,145.25,3.28339364]
[1768487162608,3.31934556,145.34,145.25,3.28339364]
[1768487162609,10.39751941,145.32,145.25,3.28339364]
[1768487162911,3.15319167,145.34,145.25,3.28339364]
[1768487163108,5.2939133,145.33,145.27,3.32876624]
[1768487166310,3.15319167,145.39,145.34,0.04582718]
[1768487166508,0.04955477,145.38,145.34,0.04582718]
[1768487167213,3.20274644,145.38,145.34,0.04582718]
[1768487167414,3.20274644,145.38,145.31,9.47869364]
[1768487168611,3.20274644,145.38,145.31,3.28339364]
[1768487169413,5.32525268,145.38,145.31,3.28339364]
[1768487170915,5.32525268,145.38,145.33,0.0459271]
[1768487172508,3.20274644,145.38,145.33,0.0459271]
[1768487173922,0.04955477,145.38,145.33,3.32932074]
[1768487175419,81.34,145.41,145.34,3.28339364]
[1768487175815,3.15319167,145.42,145.34,3.28339364]
[1768487176527,3.15319167,145.42,145.37,0.04746931]
[1768487178428,0.0508453,145.41,145.37,0.04746931]
[1768487182024,3.05087395,145.41,145.37,0.04746931]
[1768487182325,3.05087395,145.41,145.34,9.23932198]
[1768487182917,9.24217395,145.41,145.34,9.23932198]
[1768487183117,3.00002865,145.38,145.32,9.24042198]
[1768487183318,3.00002865,145.38,145.34,0.04670367]
[1768487183821,3.00002865,145.4,145.34,0.04670367]
[1768487184028,3.00002865,145.4,145.33,11.6019383]
[1768487184421,3.0270534,145.42,145.34,3.28493206]
[1768487184621,3.0270534,145.42,145.35,3.33416115]
[1768487184822,3.0270534,145.44,145.36,3.28493206]
[1768487185320,0.04852436,145.41,145.39,0.04894382]
[1768487185527,86.46955964,145.47,145.39,3.33387588]
[1768487185722,84.3470534,145.47,145.39,5.45638212]
[1768487186023,84.3470534,145.47,145.4,3.28493206]
[1768487186225,3.0270534,145.47,145.4,3.28493206]
[1768487186628,0.04354439,145.45,145.42,0.04697528]
[1768487187428,3.0270534,145.49,145.42,3.33190734]
[1768487187621,3.0270534,145.49,145.42,9.52240734]
[1768487187830,83.44250624,145.51,145.43,3.28493206]
[1768487188225,86.46955964,145.51,145.43,3.28493206]
[1768487188530,0.04345392,145.48,145.46,0.04581641]
[1768487189324,3.0270534,145.51,145.46,0.04581641]
[1768487189729,3.0270534,145.51,145.37,3.28493206]
[1768487189730,3.0270534,145.47,145.37,3.28493206]
[1768487189923,3.0270534,145.47,145.38,3.28493206]
[1768487190527,3.0270534,145.47,145.39,2.12250624]
[1768487190724,9.2146534,145.5,145.41,3.28493206]
[1768487190929,11.33715964,145.5,145.42,3.33735857]
[1768487191330,9.2149534,145.49,145.42,3.33735857]
[1768487191929,11.33745964,145.49,145.42,3.33735857]
[1768487194326,5.14955964,145.49,145.42,3.33735857]
[1768487194933,96.2165,145.55,145.42,3.33735857]
[1768487194934,20.68,145.57,145.45,5.4074383]
[1768487195131,20.68,145.57,145.46,3.28493206]
[1768487195132,177.4831,145.57,145.46,3.28493206]
[1768487195335,2.12250624,145.55,145.46,3.28493206]
[1768487195937,6.1858,145.54,145.46,9.47393206]
[1768487196135,6.1858,145.54,145.49,0.0524984]
[1768487196829,2.12250624,145.55,145.49,0.0524984]
[1768487197031,5.14955964,145.55,145.49,0.0524984]
[1768487197231,3.0270534,145.55,145.49,0.0524984]
[1768487197735,0.04356624,145.53,145.49,0.0524984]
[1768487199434,3.07061964,145.53,145.49,0.0524984]
[1768487199838,1.19649304,145.57,145.49,3.33743046]
[1768487200029,2.12250624,145.57,145.49,3.33743046]
[1768487200431,8.30700624,145.57,145.49,3.33743046]
[1768487201037,0.05079402,145.54,145.49,3.33743046]
[1768487202038,0.05079402,145.54,145.49,9.52513046]
[1768487202339,0.05079402,145.54,145.5,9.47213206]
[1768487202539,0.30149504,145.57,145.5,9.47213206]
[1768487203534,2.12250624,145.56,145.52,0.04780762]
[1768487204230,2.42400128,145.56,145.52,0.04780762]
[1768487204435,0.30149504,145.56,145.5,6.1872]
[1768487204633,2.42400128,145.56,145.5,6.1872]
[1768487205430,0.047327,145.54,145.52,0.04445682]
[1768487205634,0.047327,145.54,145.48,6.1881]
[1768487205635,2.16983324,145.54,145.48,6.1881]
[1768487205939,2.47132828,145.54,145.48,6.1881]
[1768487206737,2.12250624,145.52,145.46,9.47373206]
[1768487208038,2.12250624,145.52,145.48,0.05004073]
[1768487208233,0.04432977,145.5,145.48,0.05004073]
[1768487208430,2.12250624,145.53,145.48,0.05004073]
[1768487208831,2.42400128,145.53,145.48,0.05004073]
[1768487209942,2.42400128,145.53,145.45,6.1892]
[1768487209943,2.12250624,145.51,145.45,6.1892]
[1768487210442,81.24,145.5,145.45,6.1892]
[1768487210738,2.12250624,145.51,145.45,6.1892]
[1768487210933,81.24,145.5,145.45,6.1892]
[1768487211139,81.24,145.5,145.47,0.04464035]
[1768487211340,0.05155694,145.49,145.47,0.04464035]
[1768487213039,2.17406318,145.49,145.44,3.28493206]
[1768487213342,0.05155694,145.49,145.44,3.28493206]
[1768487214051,0.05155694,145.49,145.45,0.05027999]
[1768487218247,81.24,145.48,145.45,0.05027999]
[1768487221147,83.36250624,145.48,145.42,3.08958137]
[1768487221348,83.66678251,145.48,145.42,3.08958137]
[1768487222254,83.66678251,145.48,145.44,0.04692288]
[1768487222447,2.42678251,145.48,145.44,0.04692288]
[1768487222656,81.24,145.47,145.44,0.04692288]
[1768487222851,81.24,145.47,145.42,3.08958137]
[1768487224055,0.048693,145.46,145.43,0.0444794]
[1768487225260,81.24,145.45,145.43,0.0444794]
[1768487225452,81.288693,145.46,145.43,0.0444794]
[1768487229557,81.24,145.45,145.43,0.0444794]
[1768487230353,87.4296,145.45,145.4,3.08958137]
[1768487231561,81.24,145.44,145.4,3.08958137]
[1768487231762,81.24,145.44,145.41,0.04819744]
[1768487231958,81.24,145.44,145.38,3.08958137]
[1768487232561,81.24,145.44,145.39,3.08958137]
[1768487232760,81.24,145.43,145.39,3.08958137]
[1768487232963,6.49367627,145.46,145.39,3.08958137]
[1768487233261,0.04611573,145.42,145.39,3.08958137]
[1768487234261,0.04611573,145.42,145.39,3.14074053]
[1768487235463,0.04611573,145.42,145.39,9.33274053]
[1768487235965,81.26,145.43,145.39,9.33274053]
[1768487236366,81.26,145.43,145.39,3.14074053]
[1768487236970,0.04558559,145.42,145.39,3.14074053]
[1768487237171,0.04558559,145.42,145.39,9.33274053]
[1768487238567,81.26,145.43,145.39,9.33274053]
[1768487239769,0.04910749,145.42,145.39,9.33274053]
[1768487240669,0.04910749,145.42,145.4,6.1916]
[1768487240860,81.26,145.43,145.4,6.1916]
[1768487241062,48.47620749,145.43,145.4,6.1916]
[1768487241264,26.70390749,145.43,145.4,6.1916]
[1768487243374,26.75177453,145.43,145.4,6.1916]
[1768487243865,0.04786704,145.43,145.4,6.1916]
[1768487247867,0.04786704,145.43,145.39,3.14074053]
[1768487254678,3.35977227,145.43,145.37,3.02779402]
[1768487254976,3.6155086,145.43,145.37,3.02779402]
[1768487255679,0.04704095,145.41,145.37,3.02779402]
[1768487256774,81.26,145.44,145.39,3.02779402]
[1768487257982,81.26,145.44,145.4,0.04945894]
[1768487259381,0.04640671,145.43,145.4,0.04945894]
[1768487260378,84.59190523,145.45,145.41,3.02779402]
[1768487261185,84.59190523,145.45,145.4,0.04945894]
[1768487261483,0.04360913,145.44,145.4,0.04945894]
[1768487261981,0.04360913,145.44,145.4,3.07725296]
[1768487266495,0.04360913,145.44,145.4,0.04945894]
[1768487267994,0.04360913,145.44,145.4,6.24095894]
[1768487270300,0.04360913,145.44,145.41,6.1911]
[1768487274098,0.04360913,145.44,145.4,0.04945894]
[1768487276208,0.04360913,145.44,145.4,6.24105894]
[1768487280311,3.31190523,145.48,145.42,3.12508361]
[1768487280609,4.97646418,145.47,145.42,3.12508361]
[1768487280803,3.31190523,145.48,145.42,3.12508361]
[1768487281009,3.75144701,145.48,145.42,3.12508361]
[1768487281302,3.75144701,145.48,145.36,186.11453262]
[1768487281303,3.75144701,145.46,145.4,9.31628361]
[1768487281513,4.97537188,145.45,145.4,9.31628361]
[1768487281805,85.03144701,145.46,145.4,9.31628361]
[1768487281996,4.97537188,145.45,145.4,9.31628361]
[1768487282199,85.03144701,145.46,145.4,9.31628361]
[1768487282400,4.97555549,145.45,145.4,9.31628361]
[1768487282600,0.04907804,145.44,145.42,0.0441187]
[1768487282802,0.04907804,145.44,145.4,9.31628361]
[1768487283814,0.04907804,145.44,145.41,0.04594041]
[1768487284016,0.04907804,145.44,145.4,9.31628361]
[1768487285116,0.04907804,145.44,145.41,0.04669779]
[1768487286717,0.43954178,145.43,145.38,9.31728361]
[1768487286913,0.43954178,145.43,145.38,6.1922]
[1768487288011,0.05282059,145.42,145.38,6.1922]
[1768487288211,0.05282059,145.42,145.39,6.1921]
[1768487288407,0.05282059,145.42,145.37,3.12508361]
[1768487289514,0.05282059,145.42,145.39,6.1921]
[1768487289818,0.05282059,145.42,145.38,0.04468945]
[1768487290118,3.36472582,145.42,145.38,0.04468945]
[1768487290322,3.36472582,145.42,145.37,3.12508361]
[1768487291113,3.36472582,145.42,145.37,9.31758361]
[1768487291313,2.12169508,145.4,145.38,0.04630374]
[1768487291524,2.12169508,145.4,145.37,9.31758361]
[1768487293021,2.12169508,145.4,145.37,3.12508361]
[1768487293226,2.12169508,145.4,145.35,6.1934]
[1768487293626,2.12169508,145.38,145.33,236.28337792]
[1768487293920,2.12169508,145.38,145.32,81.26]
[1768487294224,2.12169508,145.38,145.28,2.12169508]
[1768487294427,2.12169508,145.38,145.29,81.28]
[1768487294819,2.12169508,145.38,145.29,87.4759]
[1768487295219,2.12169508,145.38,145.33,3.12508361]
[1768487296428,0.0449702,145.37,145.33,3.12508361]
[1768487300728,2.12169508,145.36,145.33,3.12508361]
[1768487301524,2.16666528,145.37,145.33,3.12508361]
[1768487303725,2.16666528,145.37,145.32,0.05035691]
[1768487304926,2.16666528,145.37,145.32,3.12235558]
[1768487309929,2.12169508,145.35,145.32,0.05035691]
[1768487310227,3.29033908,145.36,145.32,0.05035691]
[1768487311224,2.16666528,145.37,145.32,0.05035691]
[1768487312131,11.65010436,145.37,145.32,0.05035691]
[1768487312532,5.45700436,145.37,145.32,0.05035691]
[1768487313432,6.1933,145.36,145.32,0.05035691]
[1768487314827,6.1933,145.36,145.3,3.07199867]
[1768487315026,11.60583416,145.35,145.3,3.07199867]
[1768487315526,6.1946,145.33,145.27,3.07199867]
[1768487316239,0.04672352,145.31,145.27,3.07199867]
[1768487320639,0.04672352,145.31,145.24,3.07199867]
[1768487320640,5.45875768,145.31,145.24,3.07199867]
[1768487321339,3.3370626,145.31,145.24,3.07199867]
[1768487321539,5.45875768,145.31,145.24,3.07199867]
[1768487321838,6.1959,145.3,145.24,3.07199867]
[1768487322740,6.1964,145.29,145.24,3.07199867]
[1768487322930,3.29033908,145.3,145.24,3.07199867]
[1768487323132,0.04646264,145.28,145.25,0.04379176]
[1768487323932,6.24326264,145.28,145.25,0.04379176]
[1768487324339,0.04646264,145.28,145.25,0.04379176]
[1768487325533,6.24326264,145.28,145.22,3.07199867]
[1768487329141,6.24326264,145.28,145.24,0.0489761]
[1768487330145,9.48753908,145.27,145.2,3.07199867]
[1768487331237,0.05117156,145.25,145.2,3.07199867]
[1768487334042,5.21844322,145.25,145.18,3.12611888]
[1768487334247,3.04557658,145.24,145.18,3.12611888]
[1768487334546,6.1995,145.22,145.14,2.12169508]
[1768487334745,5.16727166,145.2,145.08,96.5265]
[1768487335055,5.16727166,145.2,145.09,81.34]
[1768487335348,9.24677658,145.18,145.1,2.12169508]
[1768487336049,9.24677658,145.18,145.01,112.34978153]
[1768487336050,5.16727166,145.14,145.01,112.34978153]
[1768487336352,3.04557658,145.14,145.06,3.12611888]
[1768487336648,3.04557658,145.14,145.08,3.12611888]
[1768487336949,6.2024,145.15,145.09,0.04651885]
[1768487337843,0.04853692,145.13,145.09,0.04651885]
[1768487338844,9.2974135,145.13,145.05,3.12611888]
[1768487340152,9.2974135,145.13,145.08,0.04757945]
[1768487341044,3.04557658,145.1,145.03,3.12611888]
[1768487341240,5.16727166,145.1,145.01,18.90240041]
[1768487341444,3.04557658,145.1,145.02,5.24781396]
[1768487342251,0.04782518,145.07,145.02,5.24781396]
[1768487345552,0.04782518,145.07,145.02,3.12611888]
[1768487345747,0.04782518,145.07,145.01,15.77628153]
[1768487346144,0.04782518,145.07,145.01,18.90240041]
[1768487346348,0.04782518,145.07,145.02,3.12611888]
[1768487347453,0.04782518,145.07,145.02,5.24781396]
[1768487347643,0.04782518,145.07,145.02,3.12611888]
[1768487349956,0.04782518,145.07,145.01,15.77628153]
[1768487350151,3.04557658,145.06,145.01,15.77628153]
[1768487353355,0.04782518,145.07,145.01,18.90240041]
[1768487353957,0.04782518,145.07,145.02,3.12611888]
[1768487354157,9.24937658,145.12,145.02,3.12611888]
[1768487354459,3.04557658,145.11,145.02,3.12611888]
[1768487354654,9.24967658,145.11,145.03,3.12611888]
[1768487355360,9.24967658,145.11,145.06,0.04782518]
[1768487355361,0.05251308,145.08,145.06,0.04782518]
[1768487355561,3.04557658,145.11,145.06,0.04782518]
[1768487356262,3.04557658,145.14,145.06,3.17394406]
[1768487356460,3.04557658,145.14,145.06,3.12611888]
[1768487356655,0.05136236,145.11,145.06,3.12611888]
[1768487357760,0.05136236,145.11,145.07,0.04630005]
[1768487357962,0.05136236,145.11,145.07,3.17241893]
[1768487358871,9.24867658,145.14,145.07,3.17241893]
[1768487359672,9.24777658,145.16,145.07,3.17241893]
[1768487359871,9.24777658,145.16,145.07,3.12611888]
[1768487360065,9.24777658,145.16,145.1,0.05193718]
[1768487360370,244.29345247,145.19,145.1,3.17805606]
[1768487360371,6.201,145.18,145.1,3.17805606]
[1768487360567,6.201,145.18,145.1,3.12611888]
[1768487361167,0.05080299,145.15,145.13,0.05132096]
[1768487361365,6.201,145.18,145.13,0.05132096]
[1768487361774,3.04557658,145.19,145.13,0.05132096]
[1768487362372,0.04491972,145.17,145.13,0.05132096]
[1768487362965,0.04491972,145.17,145.13,3.27824519]
[1768487363974,6.2007,145.19,145.13,3.27824519]
[1768487364671,3.12726464,145.19,145.13,0.05132096]
[1768487365068,0.05266309,145.17,145.13,0.05132096]
[1768487365868,6.25416309,145.17,145.13,0.05132096]
[1768487367777,0.05266309,145.17,145.13,0.05132096]
[1768487369475,0.05266309,145.17,145.08,3.2238365]
[1768487369476,3.17992773,145.17,145.08,3.2238365]
[1768487369664,3.12726464,145.17,145.08,3.2238365]
[1768487369866,3.12726464,145.15,145.08,3.2238365]
[1768487370570,0.04690295,145.13,145.08,3.2238365]
[1768487370765,0.04690295,145.13,145.1,0.05173975]
[1768487376177,3.12726464,145.15,145.1,0.05173975]
[1768487376389,6.45781993,145.17,145.1,3.27557625]
[1768487377082,6.45781993,145.19,145.11,3.2238365]
[1768487377283,0.05211001,145.16,145.11,3.2238365]
[1768487377483,0.05211001,145.16,145.14,0.05097602]
[1768487380781,3.12726464,145.19,145.14,0.05097602]
[1768487381979,0.04805007,145.18,145.14,6.25367602]
[1768487387791,0.04805007,145.18,145.15,6.2022]
[1768487388185,3.12726464,145.21,145.14,3.27481252]
[1768487388385,3.12726464,145.23,145.14,3.27481252]
[1768487388585,3.12726464,145.23,145.14,3.2238365]
[1768487389089,3.12726464,145.23,145.18,6.2009]
[1768487389388,0.0445559,145.2,145.18,6.2009]
[1768487389990,0.0445559,145.2,145.17,0.05043337]
[1768487390185,0.0445559,145.2,145.14,3.2238365]
[1768487390186,3.17182054,145.2,145.14,3.2238365]
[1768487390689,3.17182054,145.2,145.13,6.2029]
[1768487390883,3.12726464,145.2,145.13,6.2029]
[1768487391493,0.04704037,145.18,145.15,0.04541557]
[1768487397597,6.1995,145.22,145.15,3.29561161]
[1768487397794,3.14716847,145.23,145.15,3.29561161]
[1768487398799,0.04585526,145.2,145.15,3.29561161]
[1768487399296,0.04585526,145.2,145.15,9.49781161]
[1768487399691,0.04585526,145.2,145.16,3.25019604]
[1768487400192,0.04585526,145.2,145.15,0.04541557]
[1768487400397,3.19302373,145.2,145.15,0.04541557]
[1768487401298,96.4247,145.24,145.15,0.04541557]
[1768487401299,3.14716847,145.24,145.16,3.25019604]
[1768487401488,3.14716847,145.21,145.14,3.25019604]
[1768487401799,6.2002,145.2,145.14,3.25019604]
[1768487402001,3.14716847,145.21,145.11,3.25019604]
[1768487402501,0.05003381,145.17,145.15,0.05289412]
[1768487404296,3.14716847,145.24,145.16,3.25019604]
[1768487404696,3.14716847,145.23,145.13,3.25019604]
[1768487404901,3.14716847,145.21,145.13,9.45309604]
[1768487405300,3.14716847,145.26,145.16,3.29497639]
[1768487405601,3.14716847,145.26,145.18,3.25019604]
[1768487406201,3.14716847,145.25,145.18,3.25019604]
[1768487406402,3.14716847,145.22,145.15,3.25019604]
[1768487406597,3.14716847,145.22,145.12,3.25019604]
[1768487406906,3.14716847,145.2,145.12,9.45339604]
[1768487407200,3.14716847,145.2,145.12,3.25019604]
[1768487407406,12.67692376,145.23,145.14,3.25019604]
[1768487407706,3.14716847,145.23,145.15,3.30269378]
[1768487408106,3.14716847,145.2,145.15,0.05249774]
[1768487408316,3.14716847,145.2,145.12,3.25019604]
[1768487409008,3.14716847,145.23,145.15,3.30246951]
[1768487409205,3.14716847,145.23,145.15,3.25019604]
[1768487409401,0.05274348,145.2,145.18,0.04599517]
[1768487409807,0.05274348,145.2,145.12,9.45349604]
[1768487410105,0.05274348,145.2,145.1,96.5108]
[1768487410106,3.14716847,145.19,145.09,3.25019604]
[1768487410294,3.14716847,145.22,145.14,3.25019604]
[1768487410799,3.14716847,145.21,145.11,3.25019604]
[1768487410999,3.19908803,145.19,145.11,3.25019604]
[1768487411396,0.05191956,145.19,145.14,3.25019604]
[1768487411600,3.14716847,145.25,145.16,3.25019604]
[1768487412098,2.12761251,145.24,145.17,3.25019604]
[1768487412301,9.34546847,145.25,145.17,3.25019604]
[1768487412601,2.12761251,145.26,145.2,0.04850455]
[1768487412802,5.27478098,145.26,145.2,0.04850455]
[1768487412998,3.14716847,145.25,145.2,0.04850455]
[1768487413205,3.14716847,145.25,145.12,3.25019604]
[1768487413206,3.14716847,145.21,145.12,3.25019604]
[1768487413403,2.12761251,145.2,145.12,3.25019604]
[1768487414003,3.14716847,145.21,145.13,3.25019604]
[1768487414202,2.12761251,145.23,145.14,3.25019604]
[1768487414395,3.14716847,145.24,145.16,3.29395623]
[1768487414600,2.12761251,145.25,145.16,3.29395623]
[1768487414801,8.32571251,145.25,145.17,9.45149604]
[1768487415001,8.32571251,145.25,145.13,96.488]
[1768487415002,2.12761251,145.21,145.14,3.25019604]
[1768487415513,3.14716847,145.26,145.17,3.25019604]
[1768487415814,3.14716847,145.25,145.2,0.04697484]
[1768487416201,3.14716847,145.23,145.14,3.25019604]
[1768487416406,5.27478098,145.22,145.14,3.25019604]
[1768487416608,11.47418098,145.22,145.14,9.45259604]
[1768487416805,3.14716847,145.21,145.14,3.25019604]
[1768487417299,2.12761251,145.22,145.16,0.05106423]
[1768487418510,5.27478098,145.22,145.16,0.05106423]
[1768487418711,3.14716847,145.21,145.16,0.05106423]
[1768487418912,3.14716847,145.19,145.11,3.25019604]
[1768487419114,0.044691,145.18,145.11,3.25019604]
[1768487419411,0.044691,145.18,145.11,9.45389604]
[1768487419612,0.044691,145.18,145.11,3.25019604]
[1768487420109,0.044691,145.18,145.13,0.04460039]
[1768487420315,3.14716847,145.22,145.13,3.29479643]
[1768487420613,5.27478098,145.22,145.13,3.25019604]
[1768487420913,5.18288707,145.25,145.16,3.17871461]
[1768487421213,3.05527456,145.25,145.16,3.17871461]
[1768487421410,3.05527456,145.21,145.13,3.17871461]
[1768487421619,5.18288707,145.2,145.1,5.30632712]
[1768487421914,11.38308707,145.2,145.12,6.2032]
[1768487422216,2.12761251,145.18,145.12,6.2032]
[1768487422509,0.04483117,145.16,145.11,6.2039]
[1768487422916,2.17244368,145.16,145.07,84.57871461]
[1768487423115,2.12761251,145.16,145.09,6.2047]
[1768487423413,3.05527456,145.16,145.07,3.17871461]
[1768487423615,0.04647986,145.13,145.1,0.05219976]
[1768487424012,0.04647986,145.13,145.04,3.17871461]
[1768487424203,2.12761251,145.13,145.04,3.17871461]
[1768487424404,3.28852561,145.17,145.07,3.32038176]
[1768487424714,2.12761251,145.16,145.07,3.32038176]
[1768487425015,9.49012561,145.17,145.09,6.2047]
[1768487425316,2.12761251,145.13,145.1,0.04993013]
[1768487425515,2.12761251,145.13,145.07,3.32038176]
[1768487426017,6.2016,145.17,145.08,9.52558176]
[1768487426216,2.12761251,145.17,145.08,3.32038176]
[1768487426517,5.41613812,145.18,145.11,0.04648261]
[1768487426917,11.61723812,145.18,145.11,0.04648261]
[1768487427114,3.28852561,145.17,145.11,0.04648261]
[1768487427306,8.32961251,145.16,145.11,0.04648261]
[1768487427615,3.28852561,145.15,145.11,0.04648261]
[1768487427818,2.12761251,145.12,145.05,9.52678176]
[1768487428007,5.41613812,145.12,145.03,3.32038176]
[1768487428415,9.49112561,145.15,145.06,3.32038176]
[1768487428621,5.41613812,145.15,145.07,3.32038176]
[1768487428820,0.04639451,145.12,145.1,0.0437637]
[1768487429816,3.28852561,145.18,145.1,4.74414546]
[1768487430017,3.28852561,145.18,145.1,5.49175797]
[1768487430923,0.04660797,145.15,145.1,3.36414546]
[1768487431130,3.28852561,145.25,145.14,3.32038176]
[1768487431324,3.28852561,145.25,145.16,5.44799427]
[1768487431624,2.12761251,145.2,145.13,3.32038176]
[1768487431822,3.28852561,145.21,145.13,3.32038176]
[1768487432020,2.12761251,145.22,145.14,3.32038176]
[1768487432221,0.04882522,145.18,145.16,0.04849055]
[1768487432421,5.41613812,145.24,145.16,0.04849055]
[1768487432620,5.41613812,145.24,145.16,3.36887231]
[1768487432821,2.12761251,145.26,145.17,3.32038176]
[1768487433424,2.12761251,145.26,145.18,3.32038176]
[1768487433624,3.28852561,145.27,145.2,0.05110873]
[1768487434316,6.1964,145.29,145.2,3.37149049]
[1768487434514,6.1964,145.29,145.2,5.44799427]
[1768487434820,6.1964,145.29,145.2,3.32038176]
[1768487435026,3.28852561,145.29,145.23,0.0497898]
[1768487435214,0.04511323,145.26,145.23,0.0497898]
[1768487435419,3.28852561,145.28,145.2,3.32038176]
[1768487435721,0.04572386,145.26,145.23,0.05186972]
[1768487436119,3.28852561,145.31,145.23,0.05186972]
[1768487437421,0.04849519,145.28,145.23,3.37225148]
[1768487437626,3.28852561,145.34,145.23,3.37225148]
[1768487437828,3.28852561,145.34,145.23,3.32038176]
[1768487438426,3.28852561,145.33,145.23,9.51908176]
[1768487438827,0.04605465,145.29,145.27,0.04592929]
[1768487439630,0.04605465,145.29,145.22,6.199]
[1768487439930,0.04605465,145.29,145.21,81.4]